Workbook

Sheet LAWN & LANDSCAPE
BJ1: =IF(BU87>0,BU87,"") -> 
BU2: FALSE
BJ3: =IF(TRIM(BJ1)<>"",IF((BJ1)<2500,0,IF(AND((BJ1)>=2500,(BJ1)<10000),0.02,IF(AND((BJ1)>=10000,(BJ1)<15000),0.03,IF(AND((BJ1)>=15000,(BJ1)<25000),0.04,IF(AND((BJ1)>=25000,(BJ1)<28500),0.05,IF(AND((BJ1)>=28500,(BJ1)<40000),0.08,IF((BJ1)>=40000,0.09,""))))))),"") -> 
BU4: 1
BJ5: =IF((BU2)=TRUE,IF(BJ1>=28500,"",IF(TRIM(BJ1)<>"",0.01,"")),"") -> 
B6: Bayer PAKS offer solutions for your specific turf needs.
BJ8: =IF(TRIM(AC26)<>"",IF(BJ1>=28500,"",0.01),"") -> 
B12: =CONCATENATE("Warm Season Herbicide PAK",IF(BS61=3," - NOT AVAIL.",CONCATENATE(" - $",FIXED(X25,2,FALSE)))) -> Warm Season Herbicide PAK - $5,150.00 | BJ12: =IF(SUM(BJ3:BJ10)>=0,SUM(BJ3:BJ10),"") -> 0
B13: =IF(BS61=3,"THIS PAK IS NOT AVAILABLE FOR NEW YORK CUSTOMERS.","Provides a great combination of pre- and postemergent herbicide options to control a broad spectrum of difficult to control weeds.") -> Provides a great combination of pre- and postemergent herbicide options to control a broad spectrum of difficult to control weeds.
B14: PRODUCTS | H14: UNITS/PAK | J14: UNIT SIZE | N14: GAL/LB /OZ | P14: USE RATE / 1,000 ft2 | R14: USE RATE / ACRE | T14: ACRES TREATED / UNIT
B15: Specticle® FLO | H15: 1 | J15: 2 x 1 gal/case | N15: =IF(TRIM(H15)<>"",(H15)*2,"") -> 2 | P15: 0.1492194 | R15: =IF(TRIM(P15)<>"",P15*43.56,"") -> 6.499997064 | T15: =IF(TRIM(R15)<>"",(N15*128)/R15,"") -> 39.38463317
B16: Tribute® Total | H16: 1 | J16: 6 x 6 oz/case | N16: =IF(TRIM(H16)<>"",(H16)*36,"") -> 36 | P16: 0.06887052 | R16: =IF(TRIM(P16)<>"",P16*43.56,"") -> 2.999999851 | T16: =IF(TRIM(R16)<>"",(N16*1)/R16,"") -> 12.0000006
B17: Specticle Total | H17: 2 | J17: 4 x 144 oz/case | N17: =IF(TRIM(H17)<>"",(H17)*576,"") -> 1152 | P17: 16 | R17: =IF(TRIM(P17)<>"",P17*43.56,"") -> 696.96 | T17: 1.6
B18: Warm Season Hebicide PAK Terms of Payment: Full payment must be received by 6/5/17
BI20: TOTAL | BJ20: =IF(SUM(AC26,Y52)>0,SUM(AC26,Y52),"") -> 
BI21: TOTAL PROGRAM REBATE | BJ21: =IF(TRIM(BJ20)<>"",IF(BU87>=2500,IF(TRIM(BJ12)<>"",BJ12,""),""),"") -> 
BI23: TOTAL PROGRAM REBATE | BJ23: =IF(TRIM(BJ1)="","",IF((BJ1)<2500,0,IF(AND(TRIM(BJ1)="",TRIM(BJ21)=""),"",(BJ1)*(BJ21)))) -> 
N24: PRODUCTS | U24: # PAKS | X24: PRICE/PAK | AB24: TOTAL $ | BI24: SELECT REBATE | BJ24: =IF(BU87>=2500,IF(TRIM(AF52)<>"",AF52,""),"") -> 
N25: =IF(BS61=3,"","Warm Season Herbicide PAK") -> Warm Season Herbicide PAK | X25: =IF(BS61=3,"",IF($BS$61=1,BT58,IF($BS$61=2,BS58,BR58))) -> 5150 | AB25: =IF(BS61=3,"",IF(TRIM(U25)<>"",U25*X25,"")) ->  | BJ25: =IF(AND(TRIM(BJ23)="",TRIM(BJ24)=""),"",SUM(BJ23,BJ24)) -> 
AB26: (A) | AC26: =IF(SUM(AB25:AD25)>0,SUM(AB25:AD25),"") -> 
BG28: 2500 | BH28: 10000 | BI28: =IF(AND($BJ$20>=BG28,$BJ$20<=BH28),((BH28)-($BJ$20)),"") -> 
B29: AGENCY PRODUCTS* | H29: UNIT SIZE | K29: # UNITS | M29: PRICE/UNIT | P29: USE RATE / 1,000 ft2 | R29: USE RATE / ACRE | T29: ACRES TREATED / UNIT | X29: TOTAL $ | AA29: SELECT REBATE/ MINIMUM QTY ǂ | AE29: SELECT REBATE $ | BG29: 10000 | BH29: 15000 | BI29: =IF(AND($BJ$20>=BG29,$BJ$20<=BH29),((BH29)-($BJ$20)),"") -> 
B30: Bayleton® FLO | H30: 2 X 2.5 gal/case | M30: =IF($BS$61=1,BT63,IF($BS$61=2,BS63,BR63)) -> 2700 | P30: 0.5 | R30: =IF(TRIM(P30)<>"",P30*43.56,"") -> 21.78 | T30: =IF(TRIM(R30)<>"",IF(TRIM(K30)<>"",((K30*5)*128)/R30,(5*128)/R30),"") -> 29.38475666 | X30: =IF(BS61=2,"",IF(TRIM(K30)<>"",K30*M30,"")) ->  | AA30: $70/gal – 10 gal | AE30: =IF(TRIM(K30)<>"",IF(VALUE(K30)>=2,((K30)/0.2)*70,""),"") ->  | BG30: 15000 | BH30: 25000 | BI30: =IF(AND($BJ$20>=BG30,$BJ$20<=BH30),((BH30)-($BJ$20)),"") -> 
B31: =IF(BS61=3,"","Celsius® WG") -> Celsius® WG | H31: =IF(BS61=3,"","8 X 10 oz/case") -> 8 X 10 oz/case | M31: =IF(BS61=3,"",IF($BS$61=1,BT64,IF($BS$61=2,BS64,BR64))) -> 769.6 | P31: 0.09 | R31: =IF(BS61=3,"",IF(TRIM(P31)<>"",P31*43.56,"")) -> 3.9204 | T31: =IF(BS61=3,"",IF(TRIM(R31)<>"",IF(TRIM(K31)<>"",(K31*(8*10))/R31,(8*10)/R31),"")) -> 20.40608101 | X31: =IF(BS61=3,"",IF(TRIM(K31)<>"",K31*M31,"")) ->  | AA31: =IF(BS61=3,"","$15/case – 2 case") -> $15/case – 2 case | AE31: =IF(BS61=3,"",IF(TRIM(K31)<>"",IF(VALUE(BM91)>=2,((K31)/0.125)*1.875,""),"")) ->  | BG31: 25000 | BH31: 28500 | BI31: =IF(AND($BJ$20>=BG31,$BJ$20<=BH31),((BH31)-($BJ$20)),"") -> 
B32: Merit® 75 WSP Mega Mini | H32: 110 X 1.6 oz/drum | M32: 1250 | P32: 0.147 | R32: 6.40332 | T32: =IF(TRIM(R32)<>"",IF(TRIM(K32)<>"",(K32*(110*1.6)/R32),(110*1.6)/R32),"") -> 27.48574177 | X32: =IF(TRIM(K32)<>"",K32*M32,"") ->  | AA32: $200/drum – 2 drum | AE32: =IF(TRIM(K32)<>"",IF(VALUE(K32)>=2,(K32)*200,""),"") ->  | BG32: 28500 | BH32: 40000 | BI32: =IF(AND($BJ$20>=BG32,$BJ$20<=BH32),((BH32)-($BJ$20)),"") -> 
B33: =IF(BS61=3,"","Revolver®") -> Revolver® | H33: =IF(BS61=3,"","4 X 87 oz/case") -> 4 X 87 oz/case | M33: =IF(BS61=3,"",IF($BS$61=1,BT66,IF($BS$61=2,BS66,BR66))) -> 2240 | P33: 0.4 | R33: =IF(BS61=3,"",IF(TRIM(P33)<>"",P33*43.56,"")) -> 17.424 | T33: =IF(BS61=3,"",IF(TRIM(R33)<>"",IF(TRIM(K33)<>"",(K33*(4*87))/R33,(4*87)/R33),"")) -> 19.97245179 | X33: =IF(BS61=3,"",IF(TRIM(K33)<>"",K33*M33,"")) -> 
B34: Specticle FLO (14+ gals) | H34: 2 X 1 gal/case | M34: 2880 | P34: 0.1492 | R34: 6.499152 | T34: =IF(TRIM(R34)<>"",IF(TRIM(K34)<>"",(K34*(2*128))/R34,(2*128)/R34),"") -> 39.38975423 | BI34: =SUM(BI28:BI32) -> 0 | BJ34: =IF(BJ20>=2500,IF(BJ3>=0.08,0.09,IF(BJ3>=0.05,0.08,(BJ21)+0.01)),"") -> 0.09
B35: Specticle FLO (1-13 gals) | H35: 2 X 1 gal/case | M35: 3150 | P35: 0.1492 | R35: 6.499152 | T35: =IF(TRIM(R35)<>"",IF(TRIM(K35)<>"",(K35*(2*128))/R35,(2*128)/R35),"") -> 39.38975423 | BG35: =IF(AND(BI34>0,BI34<40000),CONCATENATE("You are only ",TEXT(BI34,"$#,##0")," from moving up to Rebate Level ",TEXT(BJ34,"0%"),"."),"") -> 
B36: Specticle FLO | H36: 8 X 18 oz/case | M36: 1816 | P36: 0.1492 | R36: 6.499152 | T36: =IF(TRIM(R36)<>"",IF(TRIM(K36)<>"",(K36*(8*18))/R36,(8*18)/R36),"") -> 22.15673676
B37: Specticle G | H37: 50 lb/bag | M37: 91 | P37: 4.591368 | R37: 199.9999901 | T37: =IF(TRIM(R37)<>"",IF(TRIM(K37)<>"",(K37*(50))/R37,(50)/R37),"") -> 0.2500000124 | AA37: $5/bag –- 40 bag | AE37: =IF(TRIM(K37)<>"",IF(VALUE(K37)>=40,(K37)*5,""),"") -> 
B38: =IF(BS61=3,"","TopChoice® (20+ bags)**") -> TopChoice® (20+ bags)** | H38: =IF(BS61=3,"","50 lb/bag") -> 50 lb/bag | M38: =IF(BS61=3,"",IF($BS$61=1,BT71,IF($BS$61=2,BS71,BR71))) -> 125 | P38: 2 | R38: =IF(BS61=3,"",IF(TRIM(P38)<>"",P38*43.56,"")) -> 87.12 | T38: =IF(BS61=3,"",IF(TRIM(R38)<>"",IF(TRIM(K38)<>"",(K38*50)/R38,50/R38),"")) -> 0.5739210285 | X38: =IF(BS61=3,"",IF(TRIM(K38)<>"",K38*M38,"")) ->  | AA38: =IF(BS61=3,"","$20/bag – 20 bag") -> $20/bag – 20 bag | AE38: =IF(BS61=3,"",IF(TRIM(K38)<>"",IF(VALUE(BM92)>=20,(K38)*20,""),"")) -> 
B39: =IF(BS61=3,"","TopChoice (1-19 bags)**") -> TopChoice (1-19 bags)** | H39: =IF(BS61=3,"","50 lb/bag") -> 50 lb/bag | M39: =IF(BS61=3,"",IF($BS$61=1,BT72,IF($BS$61=2,BS72,BR72))) -> 137.5 | P39: 2 | R39: =IF(BS61=3,"",IF(TRIM(P39)<>"",P39*43.56,"")) -> 87.12 | T39: =IF(BS61=3,"",IF(TRIM(R39)<>"",IF(TRIM(K39)<>"",(K39*50)/R39,50/R39),"")) -> 0.5739210285 | X39: =IF(BS61=3,"",IF(TRIM(K39)<>"",K39*M39,"")) ->  | AA39: =IF(BS61=3,"","$10/bag") -> $10/bag | AE39: =IF(BS61=3,"",IF(TRIM(K39)<>"",(K39)*10,"")) -> 
B40: =IF(BS61=3,"","Tribute® Total") -> Tribute® Total | H40: =IF(BS61=3,"","6 oz/bottle") -> 6 oz/bottle | M40: =IF(BS61=3,"",IF($BS$61=1,BT73,IF($BS$61=2,BS73,BR73))) -> 332.42 | P40: 0.07 | R40: =IF(BS61=3,"",IF(TRIM(P40)<>"",P40*43.56,"")) -> 3.0492 | T40: =IF(BS61=3,"",IF(TRIM(R40)<>"",IF(TRIM(K40)<>"",(K40*6)/R40,6/R40),"")) -> 1.96772924 | X40: =IF(BS61=3,"",IF(TRIM(K40)<>"",K40*M40,"")) -> 
B41: NON-AGENCY PRODUCTS
B42: Acclaim® Extra | H42: 4 X 1 gal/case | P42: 0.5 | R42: =IF(TRIM(P42)<>"",P42*43.56,"") -> 21.78 | T42: =IF(TRIM(R42)<>"",IF(TRIM(K42)<>"",(K42*(4*128))/R42,(4*128)/R42),"") -> 23.50780533 | X42: =IF(BS61=2,"",IF(AND(TRIM(K42)<>"",TRIM(M42)<>""),K42*M42,"")) ->  | AA42: $90/gal | AE42: =IF(AND(TRIM(K42)<>"",TRIM(M42)<>""),IF(VALUE(K42)>=0.25,((K42)/0.25)*90,""),"") -> 
B43: Armada 50 WDG | H43: 6 X 2 lb/case | P43: 1.2 | R43: =IF(TRIM(P43)<>"",P43*43.56,"") -> 52.272 | T43: =IF(TRIM(R43)<>"",IF(TRIM(K43)<>"",((K43)*192)/R43,192/R43),"") -> 3.673094582 | X43: =IF(AND(TRIM(K43)<>"",TRIM(M43)<>""),K43*M43,"") ->  | AA43: $12 lb – 12 lb | AE43: =IF(AND(TRIM(K43)<>"",TRIM(M43)<>""),IF((VALUE(BM87))>=12,(VALUE(K43))*12*12,""),"") -> 
B44: Compass® | H44: 20 X 8 oz/drum | P44: 0.25 | R44: =IF(TRIM(P44)<>"",P44*43.56,"") -> 10.89 | T44: =IF(TRIM(R44)<>"",IF(TRIM(K44)<>"",(K44*(20*8))/R44,(20*8)/R44),"") -> 14.69237833 | AA44: $500/drum – 1 drum | AE44: =IF(AND(TRIM(K44)<>"",TRIM(M44)<>""),IF((VALUE(BM88+BM89))>=8,(((VALUE(K44))*10))*50,""),"") -> 
B45: Compass | H45: 4 X 1 lb/case | P45: 0.25 | R45: =IF(TRIM(P45)<>"",P45*43.56,"") -> 10.89 | T45: =IF(TRIM(R45)<>"",IF(TRIM(K45)<>"",(K45*(64))/R45,(64)/R45),"") -> 5.876951331 | AA45: $50lb – 8 lb | AE45: =IF(AND(TRIM(K45)<>"",TRIM(M45)<>""),IF((VALUE(BM88+BM89))>=8,(((VALUE(K45))*4))*50,""),"") -> 
B46: =IF(BS61=3,"","ProStar® 70 WG") -> ProStar® 70 WG | H46: =IF(BS61=3,"","4 X 3 lb/case") -> 4 X 3 lb/case | P46: 2.2 | R46: =IF(BS61=3,"",IF(TRIM(P46)<>"",P46*43.56,"")) -> 95.832 | T46: =IF(BS61=3,"",IF(TRIM(R46)<>"",IF(TRIM(K46)<>"",(K46*192)/R46,192/R46),"")) -> 2.003506136 | X46: =IF(BS61=3,"",IF(AND(TRIM(K46)<>"",TRIM(M46)<>""),K46*M46,"")) ->  | AA46: =IF(BS61=3,"","$3 lb – 24 lb") -> $3 lb – 24 lb | AE46: =IF(BS61=3,"",IF(AND(TRIM(K46)<>"",TRIM(M46)<>""),IF((VALUE(BM90))>=24,((VALUE(K46))*12)*3,""),"")) -> 
B47: Forbid® | H47: 6 X 8 oz/case
B48: Dylox® 420 SL | H48: 2 X 2.5 gal/case | P48: 6.9 | R48: =IF(TRIM(P48)<>"",P48*43.56,"") -> 300.564 | T48: =IF(TRIM(R48)<>"",IF(TRIM(K48)<>"",(K48*(5*128))/R48,(5*128)/R48),"") -> 2.129330193 | X48: =IF(BS61=2,"",IF(AND(TRIM(K48)<>"",TRIM(M48)<>""),K48*M48,"")) -> 
B49: Prograss® | H49: 2 X 2.5 gal/case | P49: 1.5 | R49: =IF(TRIM(P49)<>"",P49*43.56,"") -> 65.34 | T49: =IF(TRIM(R49)<>"",IF(TRIM(K49)<>"",(K49*(5*128))/R49,(5*128)/R49),"") -> 9.794918886
B50: =IF(BS61=3,"","Revolver") -> Revolver | H50: =IF(BS61=3,"","4 X 32 oz/case") -> 4 X 32 oz/case | P50: 0.4 | R50: =IF(BS61=3,"",IF(TRIM(P50)<>"",P50*43.56,"")) -> 17.424 | T50: =IF(BS61=3,"",IF(TRIM(R50)<>"",IF(TRIM(K50)<>"",(K50*128)/R50,128/R50),"")) -> 7.346189164 | X50: =IF(BS61=3,"",IF(AND(TRIM(K50)<>"",TRIM(M50)<>""),K50*M50,"")) -> 
B51: Specticle Total | H51: 4 x 144 oz/case | P51: 16 | R51: =IF(TRIM(P51)<>"",P51*43.56,"") -> 696.96 | T51: =IF(TRIM(R51)<>"",IF(TRIM(K51)<>"",(K51*(4.5*128))/R51,(4.5*128)/R51),"") -> 0.826446281 | X51: =IF(AND(TRIM(K51)<>"",TRIM(M51)<>""),K51*M51,"") -> 
X52: (B) | Y52: =IF(SUM(X42:Z51,X30:Z40)>0,SUM(X42:Z51,X30:Z40),"") ->  | AE52: (D) | AF52: =IF(SUM(AE30:AI32,AE42:AI46,AE37:AI39)>0,SUM(AE30:AI32,AE42:AI46,AE37:AI39),"") -> 
B55: =BG35 -> 
B57: CALCULATE YOUR REBATE | BR57: Regular | BS57: California | BT57: Reg | BU57: Total Purch | BV57: HTHT Calc
BR58: 5150 | BS58: =BR58+(BR58*0.02175) -> 5262.0125 | BT58: =BR58 -> 5150 | BU58: =IF(TRIM(U25)<>"",U25*BR58,"") -> 
B59: PURCHASE TOTAL | G59: BASE BONUS | I59: OCTOBER BONUS+++ | K59: BAYER PAK BONUS+ | O59: ..(C) TOTAL PROGRAM REBATE++
BU60: =SUM(BU58:BU59) -> 0
B61: $2,500 < $10,000 | G61: 0.02 | I61: 0.01 | K61: 0.01 | O61: 0.04 | T61: October Bonus | BS61: 1
B62: $10,000 < $15,000 | G62: 0.03 | I62: 0.01 | K62: 0.01 | O62: 0.05 | BR62: Regular | BS62: California | BT62: Reg | BU62: Total Purch
B63: $15,000 < $25,000 | G63: 0.04 | I63: 0.01 | K63: 0.01 | O63: 0.06 | BR63: 2700 | BS63: =BR63+(BR63*0.02175) -> 2758.725 | BT63: =BR63 -> 2700 | BU63: =IF(BS61=2,"",IF(TRIM(K30)<>"",K30*BR63,"")) -> 
B64: $25,000 < $28,500 | G64: 0.05 | I64: 0.01 | K64: 0.01 | O64: 0.07 | BR64: 769.6 | BS64: 786.3388 | BT64: 769.6 | BU64: =IF(TRIM(K31)<>"",K31*BR64,"") -> 
B65: $28,500 < $40,000 | G65: Total program rebate for all purchases Oct 1 - Dec 9, 2016 | O65: 0.08 | BR65: 1250 | BS65: 1277.1875 | BT65: 1250
B66: $40K+ | O66: 0.09 | BR66: 2240 | BS66: 2288.72 | BT66: 2240
BR67: 2880 | BS67: 2942.64 | BT67: 2880
BR68: 3150 | BS68: 3218.5125 | BT68: 3150
X69: SELECT REBATE (D) (IF APPLICABLE) | BK69: Single Unit | BL69: PAK Unit | BM69: Total | BR69: 1816 | BS69: 1855.498 | BT69: 1816
C70: TOTAL $ (A + B) | J70: TOTAL PROGRAM REBATE_(C) | Q70: TOTAL PROGRAM REBATE | AF70: GRAND TOTAL REBATE $ | BR70: 91 | BS70: 92.97925 | BT70: 91
C71: =IF(BU4=2,"",BJ20) ->  | H71: x | J71: =IF(BJ21<>"",BJ21,"") ->  | O71: = | Q71: =IF(BU4=2,"",IF(BJ23>0,BJ23,"")) ->  | V71: + | X71: =IF(BU4=2,"",BJ24) ->  | AD71: = | AF71: =IF(TRIM(BJ25)="","",IF(BJ25>0,BJ25,"")) ->  | BR71: 125 | BS71: 127.71875 | BT71: 125
BR72: 137.5 | BS72: 140.490625 | BT72: 137.5
I73: GRAND TOTAL REBATE EARNED | AE73: X100 = MyBayerRewards POINTS | BR73: 332.42 | BS73: 339.650135 | BT73: 332.42
J74: =IF(BU87>=2500,IF(TRIM(AF71)<>"",IF(AF71>0,(AF71)/(BJ1),""),""),"") ->  | AF74: =IF((BU4)<>2,"",IF((BJ25)="","",(BJ25)*100)) -> 
BU75: =IF(AND(TRIM(K42)<>"",TRIM(M42)<>""),K42*M42,"") -> 
B76: I would like to receive (choose one): | K76: MyBayerRewards Points | Q76: or | S76: Distributor Credit | X76: MyBayerRewards Member ID
D79: Verify your rebate selection and update your profile at My Bayer Rewards by 1st March, 2017 myrewards.cropscience.bayer.com | BI79: 0.17 | BJ79: =IF(TRIM(#REF!)<>"",IF(#REF!-(INT(#REF!))=BI79,1,""),"") -> 
BI80: 0.33 | BJ80: =IF(TRIM(#REF!)<>"",IF(#REF!-(INT(#REF!))=BI80,1,""),"") -> 
BH81: =IF(TRIM(BJ85)<>"",IF((BJ85)=1,TRUE,""),"") ->  | BI81: 0.5 | BJ81: =IF(TRIM(#REF!)<>"",IF(#REF!-(INT(#REF!))=BI81,1,""),"") -> 
BI82: 0.67 | BJ82: =IF(TRIM(#REF!)<>"",IF(#REF!-(INT(#REF!))=BI82,1,""),"") -> 
BI83: 0.83 | BJ83: =IF(TRIM(#REF!)<>"",IF(#REF!-(INT(#REF!))=BI83,1,""),"") -> 
BI84: 0 | BJ84: =IF(TRIM(#REF!)<>"",IF(#REF!-(INT(#REF!))=BI84,1,""),"") -> 
BJ85: =SUM(BJ79:BJ84) ->  | BT85: PAK$ | BU85: =BU60 -> 0
D86: Customer Fall Solutions and NOW promotional cumulative purchases (August 1 - December 9, 2016) must be $2,500 or more to qualify for Select Product Rebates and Total Program Rebates. Participants must be members of MyBayerRewards. New members signed up before March 1, 2017 will receive 2016 Fall Solutions rebates. All rebates for 2016 Bayer Fall Solutions will be paid based on participant's My Bayer Rewards profile choice as of March 1, 2017 . If no selection is made, the default for Fall Solutions rebate will be Loyalty Points. Purchases qualifying for rebates will be the net of reward or credits. All products must be invoiced between October 1 and December 9, 2016 to qualify. Rebate calculations will be based on the date of actual product invoice and calculator tools are provided for estimation purposes only. Rebates will only be paid or delivered to the company or name listed on the invoice. No checks can be issued to a third party. Please allow for rebates to be fulfilled by August 31, 2017. Only end-user purchases qualify for this program, and purchases must be from a Bayer authorized Distributor or Agent. Resale of product(s) purchased within this program will not qualify for Distributor Credits or My Bayer Rewards points. If questions arise, please contact My Bayer Rewards at 1-888-456-6464 or e-mail mybayerrewards@aimia.com. Bayer CropScience LP, Environmental Science Division, 2 T.W. Alexander Drive, Research Triangle Park, NC 27709. 1-800-331-2867. www.BackedbyBayer.com. Bayer (reg'd), the Bayer Cross (reg'd), 26GT®, Acclaim®, Banol®, Bayleton®,Celsius® Chipco®, Compass®, Dylox®, Fiata®, Forbid®, Interface®, Merit®, Mirage®, Nortica®, Prostar®, Proxy®, Ronstar®, Signature™ Specticle®, Signature™ Stressgard®, Tartan®, Tribute® and Topchoice® are trademarks of Bayer. Please verify state registration of these products in your state before selling, using or distributing. Not all products and rates are registered in all states. Always read and follow label instructions. ©2016 Bayer CropScience LP. 14BPG-059-FS1 | CM86: 0.17 | CN86: =IF(TRIM($K$43)<>"",IF($K$43-(INT($K$43))=CM86,1,""),"") -> 
BI87: 0.33 | BK87: =K43*12 -> 0 | BL87: 0 | BM87: =SUM(BK87:BL87) -> 0 | BU87: =SUM(BU63:BU86) -> 0 | BV87: =SUM(BV58:BV85) -> 0
BH88: =IF(TRIM(BJ92)>0,IF((BJ92)=1,TRUE,""),"") ->  | BI88: 0.5 | BK88: =K44*10 -> 0 | BL88: 0 | BM88: 0
BI89: 0.67 | BK89: =K45*4 -> 0 | BL89: 0 | BM89: 0
BI90: 0.83 | BK90: =K46*12 -> 0 | BL90: 0 | BM90: 0
B91: Contact Name | P91: Company Number | BI91: 0 | BK91: =K31 -> 0 | BL91: 0 | BM91: 0
BJ92: =SUM(BJ86:BJ91) -> 0 | BK92: =K38*1 -> 0 | BL92: 0 | BM92: 0
BI93: 0.17 | BJ93: =IF(TRIM($K$47)<>"",IF($K$47-(INT($K$47))=BI93,1,""),"") ->  | BK93: =K39*1 -> 0 | BL93: 0 | BM93: 0
BI94: 0.33
BH95: =IF(TRIM(BJ99)>0,IF((BJ99)=1,TRUE,""),"") ->  | BI95: 0.5
BI96: 0.67
BI97: 0.83
BI98: 0
BJ99: =SUM(BJ93:BJ98) -> 0
